Cogmind - Beta 10.1 @@@ ROGUE MODE // 2021.06.04 @ 18:37:04 // Winter2019/RPGLIKE Player: Farfid Result: Escaped! Performance ------------- Evolutions (9) 4500 Regions Visited (27) 5400 Robots Destroyed (351) 1755 Value Destroyed (15854) 15854 Prototype IDs (83) 1660 Alien Tech Used (1) 200 Bonus (15000) 15000 TOTAL SCORE: 44369 Bonus ------- Triggered High Security 1000 High Alert Combat Kills 5922 Follower Combat Kills 494 Aligned with FarCom 300 Met Imprinter 300 Met Warlord at Base 500 MAIN.C Attacked Warlord 500 Warlord Defense Kill 1926 Met Warlord at Research 2000 Win 3000 Friendly Fire -942 Cogmind --------- Core Integrity 385/1950 Matter 89/350 Energy 614/700 System Corruption 4% Temperature Cool (18) Movement Flying (24) Location To Epsilon Eridani Parts ------- > --- POWER (2) -------- Vortex Chain Reactor > --- PROPULSION (6) --- Q-thruster Impulse Thruster Array Impulse Thruster Array Cooled Q-thruster > --- UTILITY (11) ----- Experimental Power Amplifier Inertial Stasis Machine Experimental Signal Interpreter Makeshift Terrain Scanner Experimental Core Analyzer Energy Filter Improved Kinecellerator Advanced Weapon Cycler Experimental Force Field System Restoration Module > --- WEAPON (2) ------- Helical Railgun Linear Accelerator > --- INVENTORY (3) ---- Protomatter-64 Fusion Bomb Launcher Peak State ------------ > --- POWER ------------ Vortex Chain Reactor > --- PROPULSION ------- Q-thruster Impulse Thruster Array Impulse Thruster Array Cooled Q-thruster > --- UTILITY ---------- Experimental Power Amplifier Inertial Stasis Machine Experimental Signal Interpreter Makeshift Terrain Scanner Experimental Core Analyzer Improved Kinecellerator Advanced Weapon Cycler Experimental Force Field Advanced Remote Shield System Restoration Module Long-range Tractor Beam > --- WEAPON ----------- Helical Railgun Helical Railgun > --- INVENTORY -------- Energy Filter Fusion Bomb Launcher Field Lobotomy Kit [Rating: 169] Favorites ----------- Power Fusion Reactor Engine Cooled Deuterium Engine Power Core Light Nuclear Core Reactor Fusion Reactor Propulsion Cooled Gravmag System Wheel Compact Wheel Hover Unit Cooled Gravmag System Flight Unit Impulse Thruster Array Utility Experimental Signal Interpreter Device Matter Filter Storage Matter Compressor Processor Experimental Signal Interpreter Protection Improved Power Shielding Weapon Helical Railgun Energy Gun Improved Medium Laser Energy Cannon Ion Burst Cannon Ballistic Gun Helical Railgun Ballistic Cannon Enhanced Gauss Cannon Launcher Improved Proton Missile Launcher Special Weapon Field Lobotomy Kit Slashing Weapon Greatsword Build | -11 -10 -10 -10 -9 -8 -7 -7 -7 -6 -6 -6 -6 -5 -5 -5 -5 -5 -4 -4 -4 -4 -4 -3 -3 -2 -1 -1 ------- Run | Scr Mat Min Exi Min Mat Fac Was Fac Fac Low Low Zio Pro Fac Upp Upp Zhi Pro Fac Upp Upp War Pro Res Res Acc Com Slots Evolved 17 | 3 . . . 1 1 1 . 1 . . . 2 . 1 . 3 . . . 1 . . . 2 1 . . Power 1 | . . . . . . . . . . . . . . . . 1 . . . . . . . . . . . Propulsion 5 | 1 . . . 1 . . . . . . . 1 . . . 1 . . . . . . . 1 . . . Utility 10 | 2 . . . . 1 . . 1 . . . 1 . 1 . 1 . . . 1 . . . 1 1 . . Weapon 1 | . . . . . . 1 . . . . . . . . . . . . . . . . . . . . . Parts Attached 211 | 4 4 1 . 2 11 16 1 15 24 3 . 4 2 22 2 1 7 2 7 . 1 16 . 13 39 3 11 Power 18 | 1 . . . . 2 2 1 4 2 . . . . 2 . . 1 . 2 . . 1 . . . . . Engine 4 | 1 . . . . . . . 2 1 . . . . . . . . . . . . . . . . . . Core 9 | . . . . . 2 2 1 2 1 . . . . 1 . . . . . . . . . . . . . Reactor 5 | . . . . . . . . . . . . . . 1 . . 1 . 2 . . 1 . . . . . Propulsion 41 | 2 2 . . . . 7 . . 4 2 . . . 4 2 . 3 . . . . 4 . 3 6 1 1 Treads . | . . . . . . . . . . . . . . . . . . . . . . . . . . . . Leg . | . . . . . . . . . . . . . . . . . . . . . . . . . . . . Wheel 3 | 2 . . . . . . . . . . . . . . 1 . . . . . . . . . . . . Hover 28 | . 2 . . . . 5 . . 4 2 . . . 4 1 . 3 . . . . 4 . 3 . . . Flight 10 | . . . . . . 2 . . . . . . . . . . . . . . . . . . 6 1 1 Utility 80 | . 1 1 . 2 4 3 . 5 9 . . 3 2 7 . 1 3 . 4 . 1 4 . 8 21 . 1 Device 64 | . 1 1 . 1 3 3 . 5 6 . . 3 2 5 . 1 2 . 4 . 1 3 . 8 14 . 1 Storage 2 | . . . . . . . . . 1 . . . . . . . . . . . . . . . 1 . . Processor 11 | . . . . 1 1 . . . 2 . . . . 2 . . . . . . . 1 . . 4 . . Hackware . | . . . . . . . . . . . . . . . . . . . . . . . . . . . . Protection 3 | . . . . . . . . . . . . . . . . . 1 . . . . . . . 2 . . Artifact . | . . . . . . . . . . . . . . . . . . . . . . . . . . . . Weapon 72 | 1 1 . . . 5 4 . 6 9 1 . 1 . 9 . . . 2 1 . . 7 . 2 12 2 9 Energy Gun 3 | . . . . . 1 . . . . . . . . 1 . . . . . . . 1 . . . . . Energy Cannon 1 | . . . . . . . . . 1 . . . . . . . . . . . . . . . . . . Ballistic Gun 29 | 1 . . . . 1 3 . 1 2 . . . . 5 . . . 2 . . . . . 2 7 1 4 Ballistic Cannon 15 | . 1 . . . 2 . . 1 1 1 . . . 2 . . . . 1 . . 4 . . 1 . 1 Launcher 17 | . . . . . 1 1 . 1 5 . . 1 . 1 . . . . . . . 2 . . 2 1 2 Special Weapon 1 | . . . . . . . . . . . . . . . . . . . . . . . . . . . 1 Impact Weapon . | . . . . . . . . . . . . . . . . . . . . . . . . . . . . Slashing Weapon 6 | . . . . . . . . 3 . . . . . . . . . . . . . . . . 2 . 1 Piercing Weapon . | . . . . . . . . . . . . . . . . . . . . . . . . . . . . Special Melee Weapon . | . . . . . . . . . . . . . . . . . . . . . . . . . . . . Unidentified Prototypes 39 | . . . . . 1 . . 2 6 . . 1 . 6 . . 2 . 2 . . 8 . 3 7 . 1 Parts Lost 5 | . . . . . . 2 . . . . . . . 1 . . . . . . . . . . 1 . 1 Power 1 | . . . . . . 1 . . . . . . . . . . . . . . . . . . . . . Propulsion 1 | . . . . . . 1 . . . . . . . . . . . . . . . . . . . . . Utility 1 | . . . . . . . . . . . . . . . . . . . . . . . . . . . 1 Weapon 2 | . . . . . . . . . . . . . . 1 . . . . . . . . . . 1 . . Highest Loss Streak 1 | . . . . . . 1 . . . . . . . 1 . . . . . . . . . . 1 . 1 Average Slot Usage (%) 89 | . 66 71 71 78 85 93 100 91 99 100 100 99 84 97 92 79 85 94 91 83 84 87 88 90 83 85 84 Engine 2 | . 14 14 14 12 . . . 5 8 9 9 8 7 . . . . . . . . . . . . . . Core 1 | . . . . . 10 9 10 3 . . . . . . . . . . . . . . . . . . . Reactor 3 | . . . . . . . . . . . . . . 6 7 5 6 11 11 11 11 7 5 5 4 4 4 Hover 20 | . 14 28 28 25 22 16 30 27 27 27 27 26 23 27 21 17 18 23 23 22 22 25 27 28 4 . . Flight 3 | . . . . . . 7 . . . . . . . . . . . . . . . . . . 13 19 19 Device 36 | . 11 14 14 20 30 38 40 41 37 36 36 35 30 36 42 38 40 41 41 38 39 43 38 35 36 42 41 Processor 7 | . . . . 8 11 1 . . 4 9 9 8 7 9 7 5 5 5 5 5 5 5 11 10 13 9 9 Ballistic Gun 6 | . 2 . . . 2 16 20 4 7 9 9 8 7 7 7 5 5 5 2 . . . . 7 9 9 8 Ballistic Cannon 3 | . 11 14 14 12 8 2 . 3 . 4 9 2 . 5 7 5 5 5 5 5 5 2 5 1 . . . Launcher 1 | . . . . . . . . . 8 4 . 6 7 . . . . . . . . 1 . . . . . Naked Turns . | . . . . . . . . . . . . . . . . . . . . . . . . . . . . Heaviest Build 91 | 4 7 7 7 9 13 20 18 29 39 30 30 30 30 37 37 42 54 54 55 55 70 86 75 77 85 91 85 Greatest Support 129 | 26 26 12 12 12 17 38 38 38 53 53 53 53 53 65 60 60 84 84 84 84 84 96 96 113 129 100 107 Greatest Overweight (x) 4 | . 1 . . . 1 1 . . . . . . . . 4 . . . . . . 1 . . . . . Average Overweight (x) . | . . . . . . . . . . . . . . . . . . . . . . . . . . . . Largest Inventory Capacity 3 | 1 1 1 1 1 1 1 1 2 2 2 2 2 2 2 2 2 2 2 2 2 2 2 2 3 3 3 3 Average Capacity 2 | 1 1 1 1 1 1 1 1 1 2 2 2 2 2 2 2 2 2 2 2 2 2 2 2 2 3 3 3 Most Carried 3 | . 1 1 1 1 1 1 1 2 2 2 2 2 2 2 2 2 2 2 2 2 2 2 2 2 3 3 3 Average Carried 1 | . . . . 1 1 1 1 1 1 2 2 2 2 2 2 2 2 2 2 2 2 2 2 1 2 2 2 Final Capacity 3 | 1 1 1 1 1 1 1 1 2 2 2 2 2 2 2 2 2 2 2 2 2 2 2 2 3 3 3 3 Final Carried 3 | . . . 1 1 1 1 1 2 2 2 2 2 2 2 2 2 2 2 2 2 2 2 2 2 3 3 2 Class Distribution -------------------- 44% | Scout 43% | Hacker-Scout 5% | Derelict-Scout 4% | Mutant Dominant Class ---------------- Mutant | -10/Materials Mutant | -10/Mines Mutant | -10/Exiles Scout | -9/Mines Scout | -8/Materials Scout | -7/Factory Scout | -7/Waste Scout | -7/Factory Scout | -6/Factory Scout | -6/Lower Caves Scout | -6/Lower Caves Scout | -6/Zion Derelict-Scout | -5/Proximity Caves Scout | -5/Factory Scout | -5/Upper Caves Scout | -5/Upper Caves Hacker-Scout | -5/Zhirov Hacker-Scout | -4/Proximity Caves Hacker-Scout | -4/Factory Hacker-Scout | -4/Upper Caves Hacker-Scout | -4/Upper Caves Hacker-Scout | -4/Warlord Hacker-Scout | -3/Proximity Caves Hacker-Scout | -3/Research Hacker-Scout | -2/Research Hacker-Scout | -1/Access Hacker-Scout | -1/Command Resources | -11 -10 -10 -10 -9 -8 -7 -7 -7 -6 -6 -6 -6 -5 -5 -5 -5 -5 -4 -4 -4 -4 -4 -3 -3 -2 -1 -1 ----------- Run | Scr Mat Min Exi Min Mat Fac Was Fac Fac Low Low Zio Pro Fac Upp Upp Zhi Pro Fac Upp Upp War Pro Res Res Acc Com Matter Collected 8788 | 230 13 107 16 64 486 511 . 427 771 137 20 19 101 1424 316 150 . 123 345 139 20 315 15 766 987 220 1066 Remotely 6704 | . . . . . 429 511 . 128 . . . . . 1300 316 150 . 123 345 139 20 315 15 766 965 220 962 Salvage Created 15787 | . 13 46 . 14 605 511 . 887 1197 167 . . 239 2320 604 114 . . 1025 470 . 471 113 2260 1991 471 2269 Parts 706 | . 4 8 . 3 37 28 . 24 60 3 8 . 10 87 33 6 . . 28 18 . 20 1 104 86 24 114 Haulers Intercepted 26 | . . . . . 3 . . 2 2 . . . . 7 . . . . 1 . . . . 7 3 1 . Recyclers Shooed 14 | . . . . . 2 1 . . 5 . . . . 3 . . . . . . . . . 2 . . 1 Parts Field Recycled . | . . . . . . . . . . . . . . . . . . . . . . . . . . . . Retrieved Matter . | . . . . . . . . . . . . . . . . . . . . . . . . . . . . Parts Self-Destructed 120 | . . . . . . . . . . 4 8 . 7 . 25 6 . . . 22 . 45 3 . . . . Prevented 28 | . . . . . . . . . . . . . 3 . . . . . . . . 23 2 . . . . Kills | -11 -10 -10 -10 -9 -8 -7 -7 -7 -6 -6 -6 -6 -5 -5 -5 -5 -5 -4 -4 -4 -4 -4 -3 -3 -2 -1 -1 ------- Run | Scr Mat Min Exi Min Mat Fac Was Fac Fac Low Low Zio Pro Fac Upp Upp Zhi Pro Fac Upp Upp War Pro Res Res Acc Com Combat Hostiles Destroyed 245 | . . 4 . 3 13 12 . 7 15 2 1 . 6 30 19 6 . . 12 11 . 15 1 21 24 8 35 Melee 2 | . . . . . . . . 2 . . . . . . . . . . . . . . . . . . . Guns 108 | . . . . . . 12 . 1 8 2 1 . 1 9 8 5 . . 3 . . . . 14 17 5 22 Cannons 92 | . . 4 . 3 9 . . 3 . . . . . 21 11 1 . . 6 11 . 15 1 7 . . . AOE 43 | . . . . . 4 . . 1 7 . . . 5 . . . . . 3 . . . . . 7 3 13 Classes Destroyed 24 | . 1 3 . . 6 . . 2 1 1 1 . . 3 . . . . . . . 4 . . . . 2 Worker 19 | . . . . . . . . 2 4 . . . . 2 . . . . 1 . . . . 5 1 1 3 Builder 10 | . . . . . 2 . . . 4 . . . . 1 . . . . . . . . . 2 1 . . Tunneler 4 | . . 1 . . . . . . 1 . . . . 2 . . . . . . . . . . . . . Hauler 26 | . . . . . 3 . . 2 2 . . . . 7 . . . . 1 . . . . 7 3 1 . Recycler 25 | . . . . . 2 2 . 6 3 . . . . 3 . . . . 2 . . . . 4 2 . 1 Minesweeper 4 | . . . . . . . . . . 1 . . . . 2 . . . . 1 . . . . . . . Operator 2 | . . . . . 1 . . . . . . . . 1 . . . . . . . . . . . . . Watcher 15 | . 1 . . . . . . . 1 . . . . 4 . . . . 4 . . . . 1 2 . 2 Swarmer 65 | . . 3 . 3 4 3 . 1 7 . . . 5 . 8 4 . . . 5 . 4 . 3 10 5 . Saboteur 2 | . . . . . . . . . . . . . . . . . . . . . . 2 . . . . . Grunt 74 | . . . . . 5 8 . 3 4 2 . . . 15 5 . . . 6 5 . 3 1 2 7 . 8 Brawler 6 | . . . . . . . . . . . . . . 2 . . . . 1 1 . . . . . . 2 Duelist 6 | . . . . . . . . 1 . . . . . 1 1 . . . . . . . . . 1 . 2 Protector 1 | . . . . . . . . . . . . . . 1 . . . . . . . . . . . . . Sentry 29 | . . . . . 4 1 . 2 2 . . . . 4 1 . . . 1 . . . . 4 2 3 5 Demolisher 1 | . . . . . . . . . . . . . . . . . . . . . . 1 . . . . . Specialist 1 | . . . . . . . . . . . 1 . . . . . . . . . . . . . . . . Hunter 9 | . . . . . . . . . . . . . . 1 . . . . 2 . . 1 . 2 . . 3 Programmer 29 | . . . . . . . . . 2 . . . 1 6 . 2 . . 2 . . . . 10 2 . 4 Behemoth 1 | . . . . . . . . . . . . . . . . . . . . . . 1 . . . . . Executioner 7 | . . . . . . . . . . . . . . . . . . . . . . 3 . . 1 . 3 Alpha 7 1 | . . . . . . . . . . . . . . . . . . . . . . . . . . . 1 Assembled 1 | . . 1 . . . . . . . . . . . . . . . . . . . . . . . . . Wasp 1 | . . . . . . . . . . . . . . . . . . . . . . . . . 1 . . Thug 7 | . . . . . . . . . . . . . . . 4 . . . . . . . . . . . 3 Wizard 3 | . . . . . . . . . . . . . . . . . . . . . . . . . . . 3 Mutant 1 | . . . . . . . . . . . . . . . . . . . . . . . . . . . 1 Commander 1 | . . . . . . . . . . . . . . . . . . . . . . . . . 1 . . Best Kill Streak 15 | . 1 3 . 3 5 8 . 3 5 1 1 . 5 7 8 4 . . 5 8 . 9 1 8 8 6 15 Combat Bots Only 15 | . . 3 . 3 4 8 . 3 4 1 1 . 5 7 7 4 . . 5 8 . 9 1 5 8 5 15 Max Kills in Single Turn 4 | . 1 1 . 1 3 1 . 1 4 1 1 . 3 3 1 1 . . 3 1 . 2 1 2 4 4 4 Gunslinging . | . . . . . . . . . . . . . . . . . . . . . . . . . . . . Exploded 4 | . . . . . 3 . . 1 3 . . . 3 . . . . . 3 . . . . . 4 3 4 Melee 1 | . . . . . . . . 1 . . . . . . . . . . . . . . . . . . . Uniques/NPCs Destroyed . | . . . . . . . . . . . . . . . . . . . . . . . . . . . . Combat | -11 -10 -10 -10 -9 -8 -7 -7 -7 -6 -6 -6 -6 -5 -5 -5 -5 -5 -4 -4 -4 -4 -4 -3 -3 -2 -1 -1 -------- Run | Scr Mat Min Exi Min Mat Fac Was Fac Fac Low Low Zio Pro Fac Upp Upp Zhi Pro Fac Upp Upp War Pro Res Res Acc Com Damage Taken 11316 | . . 103 . 102 609 1022 . 325 431 113 19 . 250 1006 570 113 . . 326 263 . 346 409 841 1385 111 2972 Core 9186 | . . 84 . 83 503 836 . 256 347 97 15 . 195 813 454 87 . . 276 214 . 281 333 687 1162 87 2376 Absorbed by Shields 3026 | . . . . . . . . . . . . . . . . . . . . . . 66 131 251 495 115 1968 Redirected to Core 7181 | . . 63 . 48 360 612 . 212 273 59 15 . 182 680 383 87 . . 183 158 . 223 288 537 814 79 1925 Core Remaining (%) 65 | 100 . . . 83 61 . . 36 . . . . 21 . . . . 100 . . . . 78 92 61 . 19 Volleys Fired 991 | . 1 18 . 12 92 57 . 21 103 27 3 . 17 131 44 11 . . 53 27 2 32 12 114 72 29 113 Largest 2 | . 1 1 . 1 1 2 . 2 1 1 2 . 1 2 2 2 . . 2 1 1 1 1 2 2 2 2 Hottest 90 | . 35 35 . 35 36 56 . 76 48 53 83 . 43 90 90 90 . . 90 60 60 60 60 76 76 76 76 Shots Fired 1479 | . 1 18 . 12 92 105 . 40 103 27 3 . 17 250 88 22 . . 72 27 2 32 12 177 139 41 199 Gun 973 | . . . . . 19 96 . 18 92 23 1 . 12 136 45 11 . . 19 . . . . 145 137 40 179 Cannon 466 | . 1 18 . 12 71 7 . 22 4 4 2 . . 114 43 11 . . 53 27 2 31 12 32 . . . Launcher 35 | . . . . . 2 2 . . 7 . . . 5 . . . . . . . . 1 . . 2 1 15 Special 5 | . . . . . . . . . . . . . . . . . . . . . . . . . . . 5 Kinetic 1439 | . 1 18 . 12 90 103 . 40 96 27 3 . 12 250 88 22 . . 72 27 2 31 12 177 137 40 179 Thermal . | . . . . . . . . . . . . . . . . . . . . . . . . . . . . Explosive 29 | . . . . . 2 2 . . 7 . . . . . . . . . . . . . . . 2 1 15 Electromagnetic 5 | . . . . . . . . . . . . . 5 . . . . . . . . . . . . . . Entropic 1 | . . . . . . . . . . . . . . . . . . . . . . 1 . . . . . Robot Hit Streak 56 | . 1 7 . 4 26 15 . 37 56 19 20 . 6 29 29 40 . . 30 32 . 31 10 23 21 14 50 Robot Miss Streak 7 | . . 3 . 1 7 3 . . 1 2 . . 1 2 1 1 . . 2 2 . 2 . 4 2 1 2 Penetration Max 2 | . . . . . . 1 . 1 1 . . . . 1 1 1 . . 1 . . . . 2 2 2 2 Secondary Targets 13 | . . . . . . 5 . . . . . . . . . . . . . . . . . . 3 . 5 Max Gunslinging Chain 1 | . . . . . . 1 . . . . . . . . . . . . . . . . . . 1 . 1 Shots Hit Robots 1071 | . 1 12 . 9 69 72 . 50 74 24 1 . 8 188 71 12 . . 56 22 . 27 3 128 89 16 139 Core Hits 619 | . 1 5 . 3 33 23 . 19 50 7 1 . 8 84 31 6 . . 33 22 . 32 4 74 72 16 95 Critical Hits 83 | . . . . . 4 3 . 2 4 . . . . 24 5 5 . . 6 . . 1 . 7 6 2 14 Critical Kills 22 | . . . . . 1 . . 1 . . . . . 8 3 1 . . . . . 1 . 3 1 . 3 Critical Parts Destroyed 53 | . . . . . 3 2 . 1 4 . . . . 14 2 4 . . 5 . . . . 4 5 . 9 Melee Attacks 40 | . . . . . . . . 36 4 . . . . . . . . . . . . . . . . . . Impact . | . . . . . . . . . . . . . . . . . . . . . . . . . . . . Slashing 40 | . . . . . . . . 36 4 . . . . . . . . . . . . . . . . . . Piercing . | . . . . . . . . . . . . . . . . . . . . . . . . . . . . Sneak Attacks 8 | . . . . . . . . 6 2 . . . . . . . . . . . . . . . . . . Combat Hostiles . | . . . . . . . . . . . . . . . . . . . . . . . . . . . . Follow-up Attacks . | . . . . . . . . . . . . . . . . . . . . . . . . . . . . Damage Inflicted 53928 | . 15 232 . 174 1381 1613 . 2717 4094 643 26 . 496 7965 2826 550 . . 4151 1510 . 2715 298 7080 5477 1269 8696 Guns 27797 | . . . . . 205 1591 . 445 2121 512 26 . 171 4130 1344 356 . . 542 . . . . 4881 4691 817 5965 Cannons 16597 | . 15 232 . 174 997 22 . 475 . 131 . . . 3743 1482 194 . . 2572 1510 . 2553 298 2199 . . . Explosions 7700 | . . . . . 179 . . 269 1667 . . . 325 92 . . . . 1037 . . 162 . . 786 452 2731 Melee 1834 | . . . . . . . . 1528 306 . . . . . . . . . . . . . . . . . . Ramming . | . . . . . . . . . . . . . . . . . . . . . . . . . . . . Kinetic 44394 | . 15 232 . 174 1202 1613 . 920 2121 643 26 . 171 7873 2826 550 . . 3114 1510 . 2553 298 7080 4691 817 5965 Thermal 1284 | . . . . . . . . 269 74 . . . . . . . . . 941 . . . . . . . . Explosive 5865 | . . . . . 179 . . . 1593 . . . . 28 . . . . 96 . . . . . 786 452 2731 Electromagnetic 389 | . . . . . . . . . . . . . 325 64 . . . . . . . . . . . . . Impact . | . . . . . . . . . . . . . . . . . . . . . . . . . . . . Slashing 1834 | . . . . . . . . 1528 306 . . . . . . . . . . . . . . . . . . Piercing . | . . . . . . . . . . . . . . . . . . . . . . . . . . . . Entropic 162 | . . . . . . . . . . . . . . . . . . . . . . 162 . . . . . Highest Corruption 12 | . . . . . 4 . 9 10 3 3 3 3 2 7 7 7 7 6 . . . . . 12 3 4 4 Average Corruption 4 | . . . . . 3 . 9 9 1 3 3 3 1 4 7 7 6 4 . . . . . 9 1 4 2 Corruption Purged 15 | . . . . . . . . . . . . . . . . . 1 3 . . . . . . 3 . 8 Effects 191 | . . . . . 5 . 1 35 5 12 4 1 2 12 26 15 3 11 . . . . . 44 5 2 8 Message Errors 37 | . . . . . 1 . . 6 . 3 2 . 2 1 4 5 1 2 . . . . . 6 1 1 2 Matter Fused 29 | . . . . . 1 . . 5 . 5 1 . . 2 3 3 . 3 . . . . . 2 2 . 2 Heat Flow Errors 16 | . . . . . . . . 3 1 1 . . . 2 1 2 1 2 . . . . . 1 . . 2 Energy Discharges 15 | . . . . . . . . 5 . 1 . . . 1 2 1 . 1 . . . . . 2 1 . 1 Parts Rejected 1 | . . . . . . . 1 . . . . . . . . . . . . . . . . . . . . Data Loss (minor) 22 | . . . . . 1 . . 2 2 1 . 1 . 1 3 3 1 3 . . . . . 3 . . 1 Data Loss (major) 4 | . . . . . . . . . . . . . . . 1 . . . . . . . . 3 . . . Misfires 8 | . . . . . . . . 2 . . . . . 2 2 . . . . . . . . 2 . . . Misdirections 11 | . . . . . . . . 5 . . . . . . . . . . . . . . . 6 . . . Targeting Errors 42 | . . . . . 2 . . 7 2 1 . . . 2 9 1 . . . . . . . 16 1 1 . Weapon Failures 6 | . . . . . . . . . . . 1 . . 1 1 . . . . . . . . 3 . . . Overload Shots . | . . . . . . . . . . . . . . . . . . . . . . . . . . . . Overflow Damage 1674 | . . . . 1 8 . . 617 270 27 . . 13 133 97 . . . 292 75 . 29 7 17 60 . 28 Projectiles 551 | . . . . 1 8 . . 8 . 27 . . . 133 97 . . . 149 75 . 29 7 17 . . . Explosions 358 | . . . . . . . . 43 71 . . . 13 . . . . . 143 . . . . . 60 . 28 Melee 765 | . . . . . . . . 566 199 . . . . . . . . . . . . . . . . . . Knockbacks 68 | . . 1 . 3 12 . . 3 . 2 . . . 4 10 1 . . 15 3 . 6 . 8 . . . Impact . | . . . . . . . . . . . . . . . . . . . . . . . . . . . . Kinetic 64 | . . 1 . 3 10 . . 3 . 2 . . . 4 10 1 . . 14 3 . 6 . 7 . . . Secondary 4 | . . . . . 2 . . . . . . . . . . . . . 1 . . . . 1 . . . Self-Inflicted Damage 148 | . . . . . . . . . 34 . . . 30 44 . . . . 40 . . . . . . . . Shots 6 | . . . . . . . . . 2 . . . 2 1 . . . . 1 . . . . . . . . Rammed . | . . . . . . . . . . . . . . . . . . . . . . . . . . . . Targets Rammed . | . . . . . . . . . . . . . . . . . . . . . . . . . . . . Kicked . | . . . . . . . . . . . . . . . . . . . . . . . . . . . . Crushed . | . . . . . . . . . . . . . . . . . . . . . . . . . . . . Highest Temperature 248 | . . . . . . 6 . 197 138 86 . . . 184 164 248 147 231 21 20 10 20 . 217 . . 131 Average Temperature 28 | . . . . . . 6 . 87 86 63 . . . 22 27 33 81 105 12 13 10 12 . 116 . . 81 Received Heat Transfer 1447 | . . . . . 117 462 . 99 63 45 . . . 135 144 . . . 39 9 . 28 . 36 91 8 171 Siege Activations . | . . . . . . . . . . . . . . . . . . . . . . . . . . . . Robots Corrupted . | . . . . . . . . . . . . . . . . . . . . . . . . . . . . Combat Hostiles . | . . . . . . . . . . . . . . . . . . . . . . . . . . . . Parts Fried 1 | . . . . . . . . . . . . . 1 . . . . . . . . . . . . . . Impact Corruptions . | . . . . . . . . . . . . . . . . . . . . . . . . . . . . Robots Melted . | . . . . . . . . . . . . . . . . . . . . . . . . . . . . Combat Hostiles . | . . . . . . . . . . . . . . . . . . . . . . . . . . . . Parts Melted 6 | . . . . . . . . . . . . . . . 1 . . . 2 . . . . . 3 . . Heat Transferred 800 | . . . . . . . . 200 50 . . . . . . . . . 550 . . . . . . . . Parts Sabotaged 3 | . . . . . . . . . . . . . . . . . . . . . . 3 . . . . . Parts Stolen . | . . . . . . . . . . . . . . . . . . . . . . . . . . . . Parts Stripped . | . . . . . . . . . . . . . . . . . . . . . . . . . . . . Power Chain Reactions . | . . . . . . . . . . . . . . . . . . . . . . . . . . . . Missiles Intercepted . | . . . . . . . . . . . . . . . . . . . . . . . . . . . . Alert | -11 -10 -10 -10 -9 -8 -7 -7 -7 -6 -6 -6 -6 -5 -5 -5 -5 -5 -4 -4 -4 -4 -4 -3 -3 -2 -1 -1 ------- Run | Scr Mat Min Exi Min Mat Fac Was Fac Fac Low Low Zio Pro Fac Upp Upp Zhi Pro Fac Upp Upp War Pro Res Res Acc Com Peak Influence 2364 | . 37 70 . 85 406 539 199 419 799 . . . . 1264 . . . . 1082 . . . . 1023 1789 1640 2364 Initial 1100 | . . 14 . . 33 162 169 139 131 . . . . 88 . . . . . . . . . 20 414 1100 1049 Average 604 | . 17 30 . 82 258 329 183 298 429 . . . . 589 . . . . 423 . . . . 498 1009 1403 1461 Maximum Alert Level 5 | . . . . . 2 2 . 2 3 . . . . 4 . . . . 3 . . . . 3 5 5 5 Low Security (%) 22 | 100 100 100 . 100 23 29 100 16 15 . . . . 20 . . . . 19 . . . . 19 . . . Level 1 21 | . . . . . 68 29 . 64 19 . . . . 14 . . . . 46 . . . . 24 . . . Level 2 19 | . . . . . 8 41 . 18 63 . . . . 22 . . . . 7 . . . . 20 17 . . Level 3 19 | . . . . . . . . . 2 . . . . 38 . . . . 26 . . . . 36 59 . 3 Level 4 11 | . . . . . . . . . . . . . . 4 . . . . . . . . . . 13 91 67 Level 5 . | . . . . . . . . . . . . . . . . . . . . . . . . . . 8 4 High Security 3 | . . . . . . . . . . . . . . . . . . . . . . . . . 8 . 25 Max Security . | . . . . . . . . . . . . . . . . . . . . . . . . . . . . Squads Dispatched 75 | . . . . . 1 4 . 6 9 . . . . 17 . . . . 3 . . . . 15 5 3 12 Investigation 15 | . . . . . . 2 . 2 1 . . . . 4 . . . . . . . . . 1 4 1 . Extermination 8 | . . . . . . . . . 1 . . . . 2 . . . . 1 . . . . 2 . . 2 Reinforcement 26 | . . . . . 1 2 . 4 5 . . . . 7 . . . . 2 . . . . 4 1 . . Assault 17 | . . . . . . . . . . . . . . 2 . . . . . . . . . 3 . 2 10 Garrison 9 | . . . . . . . . . 2 . . . . 2 . . . . . . . . . 5 . . . Intercept . | . . . . . . . . . . . . . . . . . . . . . . . . . . . . Construction Impeded 9 | . . . . . . 1 . . 3 . . . . 2 . . . . 1 . . . . 2 . . . Haulers Reinforced 9 | . . . . . . . . . 2 . . . . 3 . . . . 1 . . . . 2 1 . . Stealth | -11 -10 -10 -10 -9 -8 -7 -7 -7 -6 -6 -6 -6 -5 -5 -5 -5 -5 -4 -4 -4 -4 -4 -3 -3 -2 -1 -1 --------- Run | Scr Mat Min Exi Min Mat Fac Was Fac Fac Low Low Zio Pro Fac Upp Upp Zhi Pro Fac Upp Upp War Pro Res Res Acc Com Distress Signals 19 | . . . . . 2 1 . . 1 . . . . 2 . . . . 2 . . . . 3 4 1 3 Communications Jammed . | . . . . . . . . . . . . . . . . . . . . . . . . . . . . Distress Signals . | . . . . . . . . . . . . . . . . . . . . . . . . . . . . Times Spotted 423 | . 2 6 . 3 27 18 4 24 20 4 . . 6 37 22 6 . . 17 9 . 17 . 32 43 9 117 Peak Tracking Total 24 | . 1 3 . 3 7 6 4 5 5 2 1 . 5 6 5 4 . . 6 5 . 8 4 8 17 6 24 Tactical Retreats 39 | . . 1 . . 2 1 . 2 3 2 . . . 3 1 . . . 2 . . . 1 3 1 1 16 Traps | -11 -10 -10 -10 -9 -8 -7 -7 -7 -6 -6 -6 -6 -5 -5 -5 -5 -5 -4 -4 -4 -4 -4 -3 -3 -2 -1 -1 ------- Run | Scr Mat Min Exi Min Mat Fac Was Fac Fac Low Low Zio Pro Fac Upp Upp Zhi Pro Fac Upp Upp War Pro Res Res Acc Com Traps Triggered 21 | . . . . . 2 3 . 1 2 . . . . 2 . . . . . . . . . 3 . 2 6 Indirectly . | . . . . . . . . . . . . . . . . . . . . . . . . . . . . Trap Hack Attempts . | . . . . . . . . . . . . . . . . . . . . . . . . . . . . Triggered . | . . . . . . . . . . . . . . . . . . . . . . . . . . . . Disarmed . | . . . . . . . . . . . . . . . . . . . . . . . . . . . . Reprogrammed . | . . . . . . . . . . . . . . . . . . . . . . . . . . . . Reused . | . . . . . . . . . . . . . . . . . . . . . . . . . . . . Traps Extracted . | . . . . . . . . . . . . . . . . . . . . . . . . . . . . Installed 2 | . . . . . . . . . . . . . . . 2 . . . . . . . . . . . . Triggered 9 | . . . . . . . . . . 2 . . . . . . . . . . . 6 1 . . . . Machines | -11 -10 -10 -10 -9 -8 -7 -7 -7 -6 -6 -6 -6 -5 -5 -5 -5 -5 -4 -4 -4 -4 -4 -3 -3 -2 -1 -1 ---------- Run | Scr Mat Min Exi Min Mat Fac Was Fac Fac Low Low Zio Pro Fac Upp Upp Zhi Pro Fac Upp Upp War Pro Res Res Acc Com Machines Disabled 80 | . . . . . 1 4 . 4 16 . 1 . . 18 . . . . 15 . . 5 . 5 4 2 5 Max in Single Turn 6 | . . . . . 1 1 . 3 6 . 1 . . 6 . . . . 5 . . 3 . 2 1 1 1 Garrison Access 7 | . . . . . . . . 1 . . . . . . . . . . . . . . . . 4 2 . Machines Sabotaged . | . . . . . . . . . . . . . . . . . . . . . . . . . . . . Garrisons Compromised . | . . . . . . . . . . . . . . . . . . . . . . . . . . . . Overloaded Fab Kills . | . . . . . . . . . . . . . . . . . . . . . . . . . . . . Fab Network Shutdowns 1 | . . . . . . . . . . . . . . . . . . . 1 . . . . . . . . Hacking | -11 -10 -10 -10 -9 -8 -7 -7 -7 -6 -6 -6 -6 -5 -5 -5 -5 -5 -4 -4 -4 -4 -4 -3 -3 -2 -1 -1 --------- Run | Scr Mat Min Exi Min Mat Fac Was Fac Fac Low Low Zio Pro Fac Upp Upp Zhi Pro Fac Upp Upp War Pro Res Res Acc Com Machines Accessed 94 | . . . 2 . 3 6 . 7 9 2 . . . 14 1 2 4 . 5 . 1 5 . 9 5 10 9 Terminals 60 | . . . . . 3 5 . 5 8 1 . . . 10 . . . . 2 . . . . 8 1 8 9 Fabricators 6 | . . . . . . . . 1 . . . . . 2 . . . . 2 . . . . 1 . . . Repair Stations 2 | . . . . . . . . . . . . . . 2 . . . . . . . . . . . . . Recycling Units . | . . . . . . . . . . . . . . . . . . . . . . . . . . . . Scanalyzers 4 | . . . . . . 1 . . 1 . . . . . . . . . 1 . . . . . 1 . . Garrison Access 6 | . . . . . . . . 1 . . . . . . . . . . . . . . . . 3 2 . Total Hacks 245 | . . . 3 . 9 16 . 18 28 6 . . . 34 1 2 16 . 16 . 1 9 . 22 13 26 25 Successful 140 | . . . 3 . 4 10 . 7 17 4 . . . 15 1 2 16 . 8 . 1 9 . 12 6 14 11 Failed 104 | . . . . . 5 6 . 11 11 1 . . . 19 . . . . 8 . . . . 10 7 12 14 Catastrophic 18 | . . . . . 1 . . 3 2 . . . . 5 . . . . 2 . . . . 1 2 1 1 Database Lockouts 1 | . . . . . . . . . . 1 . . . . . . . . . . . . . . . . . Manual 86 | . . . 1 . 5 6 . 7 9 4 . . . 8 . . . . 8 . . . . 9 7 8 14 Terminals 172 | . . . . . 9 15 . 15 26 5 . . . 25 . . . . 8 . . . . 21 3 20 25 Fabricators 12 | . . . . . . . . 1 . . . . . 5 . . . . 5 . . . . 1 . . . Repair Stations 4 | . . . . . . . . . . . . . . 4 . . . . . . . . . . . . . Recycling Units . | . . . . . . . . . . . . . . . . . . . . . . . . . . . . Scanalyzers 8 | . . . . . . 1 . . 2 . . . . . . . . . 3 . . . . . 2 . . Garrison Access 16 | . . . . . . . . 2 . . . . . . . . . . . . . . . . 8 6 . Terminal Hacks 94 | . . . 3 . 3 7 . 3 15 3 . . . 8 1 2 16 . 1 . 1 9 . 8 1 8 5 Record 17 | . . . 2 . . . . 1 1 1 . . . . . . 5 . . . . 7 . . . . . Part Schematic 14 | . . . . . . . . . 5 1 . . . 1 . . 3 . 1 . . . . 3 . . . Robot Analysis 8 | . . . . . . 1 . . . . . . . 1 . . 4 . . . . . . . 1 1 . Prototype ID Bank 9 | . . . . . . . . 1 2 . . . . 2 . . 4 . . . . . . . . . . Open Door 10 | . . . . . . . . . . 1 . . . . 1 2 . . . . 1 2 . . . 3 . Level Access Points 1 | . . . . . . . . . . . . . . . . . . . . . . . . . . . 1 Branch Access Points 5 | . . . . . 1 1 . . 1 . . . . 1 . . . . . . . . . . . 1 . Emergency Access Points 1 | . . . . . . . . . 1 . . . . . . . . . . . . . . . . . . Machine Index 1 | . . . . . . 1 . . . . . . . . . . . . . . . . . . . . . Terminal Index 3 | . . . . . . 1 . . 1 . . . . . . . . . . . . . . . . . 1 Garrison Index 1 | . . . . . . . . . . . . . . . . . . . . . . . . . . 1 . Alert Level 3 | . . . . . . . . . 1 . . . . . . . . . . . . . . 1 . 1 . Unreport Threat 2 | . . . . . . . . . . . . . . . . . . . . . . . . 1 . 1 . Locate Traps 4 | . . . . . 1 1 . . 1 . . . . . . . . . . . . . . . . . 1 Recall Assault 1 | . . . . . . . . . . . . . . 1 . . . . . . . . . . . . . Hauler Manifests 6 | . . . . . . . . 1 1 . . . . 2 . . . . . . . . . 2 . . . Registered Components 3 | . . . . . . 1 . . 1 . . . . . . . . . . . . . . 1 . . . Registered Prototypes 1 | . . . . . . 1 . . . . . . . . . . . . . . . . . . . . . Zone Layout 1 | . . . . . 1 . . . . . . . . . . . . . . . . . . . . . . EX-Prototype ID Bank 1 | . . . 1 . . . . . . . . . . . . . . . . . . . . . . . . Disengage Seal 2 | . . . . . . . . . . . . . . . . . . . . . . . . . . . 2 Fabricator Hacks 6 | . . . . . . . . . . . . . . 2 . . . . 3 . . . . 1 . . . Load Schematic 2 | . . . . . . . . . . . . . . 1 . . . . 1 . . . . . . . . Build 4 | . . . . . . . . . . . . . . 1 . . . . 2 . . . . 1 . . . Repair Station Hacks 4 | . . . . . . . . . . . . . . 4 . . . . . . . . . . . . . Scan Component 2 | . . . . . . . . . . . . . . 2 . . . . . . . . . . . . . Repair 2 | . . . . . . . . . . . . . . 2 . . . . . . . . . . . . . Recycling Unit Hacks . | . . . . . . . . . . . . . . . . . . . . . . . . . . . . Scanalyzer 7 | . . . . . . 1 . . 1 . . . . . . . . . 3 . . . . . 2 . . Insert Component 4 | . . . . . . 1 . . 1 . . . . . . . . . 1 . . . . . 1 . . Analyze 3 | . . . . . . . . . . . . . . . . . . . 2 . . . . . 1 . . Garrison Access Hacks 2 | . . . . . . . . 1 . . . . . . . . . . . . . . . . . 1 . Seal Access 2 | . . . . . . . . 1 . . . . . . . . . . . . . . . . . 1 . Unauthorized Hacks 27 | . . . . . 1 2 . 3 1 1 . . . 1 . . . . 1 . . . . 3 3 5 6 Terminals 22 | . . . . . 1 2 . 2 1 1 . . . 1 . . . . 1 . . . . 3 . 4 6 Track 5 | . . . . . . . . . 1 . . . . . . . . . . . . . . 1 . 1 2 Botnet 16 | . . . . . 1 2 . 2 . . . . . 1 . . . . 1 . . . . 2 . 3 4 Disrupt 1 | . . . . . . . . . . 1 . . . . . . . . . . . . . . . . . Fabricators 1 | . . . . . . . . 1 . . . . . . . . . . . . . . . . . . . Download 1 | . . . . . . . . 1 . . . . . . . . . . . . . . . . . . . Repair Stations . | . . . . . . . . . . . . . . . . . . . . . . . . . . . . Recycling Units . | . . . . . . . . . . . . . . . . . . . . . . . . . . . . Scanalyzers . | . . . . . . . . . . . . . . . . . . . . . . . . . . . . Garrison Access 4 | . . . . . . . . . . . . . . . . . . . . . . . . . 3 1 . Jam 4 | . . . . . . . . . . . . . . . . . . . . . . . . . 3 1 . Data Cores Recovered 1 | . . . . . . . . . . . . . . 1 . . . . . . . . . . . . . Used . | . . . . . . . . . . . . . . . . . . . . . . . . . . . . Hacking Detections 71 | . . . . . 3 5 . 6 9 . . . . 14 . . . . 3 . . . . 9 5 9 8 Full Trace Events 7 | . . . . . . 1 . 1 1 . . . . 3 . . . . . . . . . . 1 . . Feedback Events 2 | . . . . . . . . 1 1 . . . . . . . . . . . . . . . . . . Corruption 2 | . . . . . . . . 1 1 . . . . . . . . . . . . . . . . . . Feedback Blocked . | . . . . . . . . . . . . . . . . . . . . . . . . . . . . Robot Schematics Acquired 1 | . . . . . . . . 1 . . . . . . . . . . . . . . . . . . . Robots Built 4 | . . . . . . . . . . . . . . . . . . . 2 . . . . 2 . . . Matter 702 | . . . . . . . . . . . . . . . . . . . 351 . . . . 351 . . . Time 280 | . . . . . . . . . . . . . . . . . . . 187 . . . . 93 . . . Total Robot Build Rating 28 | . . . . . . . . . . . . . . . . . . . 14 . . . . 14 . . . Part Schematics Acquired 16 | . . . . . . . . . 5 1 . . . 1 . . 3 . 2 . . . . 3 1 . . Parts Built 3 | . . . . . . . . . . . . . . 2 . . . . 1 . . . . . . . . Matter 464 | . . . . . . . . . . . . . . 146 . . . . 318 . . . . . . . . Time 120 | . . . . . . . . . . . . . . 36 . . . . 84 . . . . . . . . Total Part Build Rating 12 | . . . . . . . . . . . . . . 6 . . . . 6 . . . . . . . . Parts Repaired 2 | . . . . . . . . . . . . . . 2 . . . . . . . . . . . . . Time 84 | . . . . . . . . . . . . . . 84 . . . . . . . . . . . . . Parts Recycled . | . . . . . . . . . . . . . . . . . . . . . . . . . . . . Recycled Matter . | . . . . . . . . . . . . . . . . . . . . . . . . . . . . Retrieved Matter . | . . . . . . . . . . . . . . . . . . . . . . . . . . . . Retrieved Components . | . . . . . . . . . . . . . . . . . . . . . . . . . . . . Parts Scanalyzed 3 | . . . . . . . . . 1 . . . . . . . . . 1 . . . . . 1 . . Part Schematics Acquired 2 | . . . . . . . . . . . . . . . . . . . 1 . . . . . 1 . . Parts Damaged . | . . . . . . . . . . . . . . . . . . . . . . . . . . . . Bothacking | -11 -10 -10 -10 -9 -8 -7 -7 -7 -6 -6 -6 -6 -5 -5 -5 -5 -5 -4 -4 -4 -4 -4 -3 -3 -2 -1 -1 ------------ Run | Scr Mat Min Exi Min Mat Fac Was Fac Fac Low Low Zio Pro Fac Upp Upp Zhi Pro Fac Upp Upp War Pro Res Res Acc Com Used RIF Installer . | . . . . . . . . . . . . . . . . . . . . . . . . . . . . Robots Hacked . | . . . . . . . . . . . . . . . . . . . . . . . . . . . . Non-combat . | . . . . . . . . . . . . . . . . . . . . . . . . . . . . Combat . | . . . . . . . . . . . . . . . . . . . . . . . . . . . . Robot Hacks Applied . | . . . . . . . . . . . . . . . . . . . . . . . . . . . . Relay Couplers Released 2 | . . . . . . . . . . . . . . . . . . . . . . . . 1 1 . . Machine Destruction 1 | . . . . . . . . . . . . . . . . . . . . . . . . . 1 . . Programmers 1 | . . . . . . . . . . . . . . . . . . . . . . . . 1 . . . Robots Rewired . | . . . . . . . . . . . . . . . . . . . . . . . . . . . . Allies Hacked . | . . . . . . . . . . . . . . . . . . . . . . . . . . . . Hacks Repelled . | . . . . . . . . . . . . . . . . . . . . . . . . . . . . Allies | -11 -10 -10 -10 -9 -8 -7 -7 -7 -6 -6 -6 -6 -5 -5 -5 -5 -5 -4 -4 -4 -4 -4 -3 -3 -2 -1 -1 -------- Run | Scr Mat Min Exi Min Mat Fac Was Fac Fac Low Low Zio Pro Fac Upp Upp Zhi Pro Fac Upp Upp War Pro Res Res Acc Com Total Allies 9 | . . 2 . . . . . . . . . . . . . . . . 2 . . . . 2 . . 3 Largest Group 3 | . . 2 . . . . . . . . . . . . . . . . 2 . . . . 2 . . 3 Highest-Rated Group 552 | . . 42 . . . . . . . . . . . . . . . . 112 . . . . 112 . . 552 Highest-Rated Ally 222 | . . 31 . . . . . . . . . . . . . . . . 56 . . . . 56 . . 222 Total Orders . | . . . . . . . . . . . . . . . . . . . . . . . . . . . . Ally Attacks 41 | . . 1 . . . . . . . . . . . . . . . . 7 . . . . 14 . . 19 Total Damage 2825 | . . . . . . . . . . . . . . . . . . . 131 . . . . 424 . . 2270 Kills 8 | . . . . . . . . . . . . . . . . . . . 1 . . . . 1 . . 6 Allies Corrupted . | . . . . . . . . . . . . . . . . . . . . . . . . . . . . Allies Melted 1 | . . . . . . . . . . . . . . . . . . . . . . . . . 1 . . Field Lobotomies 3 | . . . . . . . . . . . . . . . . . . . . . . . . . . . 3 Intel | -11 -10 -10 -10 -9 -8 -7 -7 -7 -6 -6 -6 -6 -5 -5 -5 -5 -5 -4 -4 -4 -4 -4 -3 -3 -2 -1 -1 ------- Run | Scr Mat Min Exi Min Mat Fac Was Fac Fac Low Low Zio Pro Fac Upp Upp Zhi Pro Fac Upp Upp War Pro Res Res Acc Com Robot Analysis Total 8 | . . . . . . 1 . . . . . . . 1 . . 4 . . . . . . . 1 1 . Derelict Logs Recovered 16 | . . 2 . 1 . . . . . 2 1 2 1 . 1 2 . 2 . 2 . . . . . . . Drone Launches . | . . . . . . . . . . . . . . . . . . . . . . . . . . . . Drone Recoveries . | . . . . . . . . . . . . . . . . . . . . . . . . . . . . Exploration | -11 -10 -10 -10 -9 -8 -7 -7 -7 -6 -6 -6 -6 -5 -5 -5 -5 -5 -4 -4 -4 -4 -4 -3 -3 -2 -1 -1 ------------- Run | Scr Mat Min Exi Min Mat Fac Was Fac Fac Low Low Zio Pro Fac Upp Upp Zhi Pro Fac Upp Upp War Pro Res Res Acc Com Turns Passed 13659 | 33 120 325 129 339 533 526 55 806 942 486 180 486 379 1339 571 532 77 366 605 381 300 568 332 911 1196 297 845 Spaces Moved 18476 | 33 140 481 228 405 391 511 91 981 1163 749 312 918 485 1526 738 586 138 428 816 508 480 957 372 1059 2066 658 1256 Core 7 | 6 . . . . . . . . . . . . . . 1 . . . . . . . . . . . . Treads . | . . . . . . . . . . . . . . . . . . . . . . . . . . . . Legs . | . . . . . . . . . . . . . . . . . . . . . . . . . . . . Wheels 73 | 27 46 . . . . . . . . . . . . . . . . . . . . . . . . . . Hover 14380 | . 94 481 228 405 391 323 91 981 1163 749 312 918 485 1526 737 586 138 428 816 508 480 957 372 1059 152 . . Flight 4016 | . . . . . . 188 . . . . . . . . . . . . . . . . . . 1914 658 1256 Fastest Speed 24 | 50 56 56 56 56 56 37 52 52 52 52 52 52 52 40 48 48 40 40 40 40 40 34 34 31 28 28 24 Average Speed 43 | 83 75 56 56 56 57 47 52 52 52 52 52 52 52 43 48 48 45 40 40 40 40 37 34 32 33 28 27 Slowest Speed 250 | 100 120 56 56 56 116 120 52 52 52 56 52 52 52 52 250 48 48 40 40 40 40 90 34 34 37 28 28 Overloaded Moves 24 | . . . . . . . . . . . . . . . . . . . . . . . . . . . 24 Propulsion Burnouts . | . . . . . . . . . . . . . . . . . . . . . . . . . . . . Robots Hopped 25 | . . . . . . . . . . . . . . . . . . . . . . . . . 11 2 12 Cave-ins Triggered 2 | . . . . . . . . . . . . . . . . . . . . . . . 2 . . . . Exploration Rate (%) 55 | 3 29 83 62 76 37 13 74 31 42 88 46 83 66 50 77 77 61 68 22 69 70 85 52 43 68 24 48 Regions Visited 27 Branch Regions 16 Pre-discovered Areas 9 | . . 1 1 1 . . . . . . . . . . . 1 3 . . 1 . 1 . . . . . Known Exits Taken 18 | . . . . . . . . . 1 1 1 1 1 1 1 1 1 1 1 1 1 1 1 1 1 1 . Unknown Exits Taken 7 | 1 1 1 1 1 1 . . 1 . . . . . . . . . . . . . . . . . . . Scrap Searched 23 | . . . . 2 . . . . . 3 2 1 3 . 3 2 . 3 . 2 2 . . . . . . Spaces Dug 321 | . . . . . . 23 . 15 7 2 . . 9 54 . 3 . . 30 . 6 . 26 41 30 28 47 Terrain Destroyed 1297 | . . . . . 19 25 . 43 164 15 . . 11 216 58 18 . . 172 30 6 22 27 151 105 64 151 Melee 14 | . . . . . . . . 13 1 . . . . . . . . . . . . . . . . . . Projectile 722 | . . . . . . 3 . 9 18 15 . . 11 83 58 18 . . 33 30 6 6 27 151 86 39 129 AOE 561 | . . . . . 19 22 . 21 145 . . . . 133 . . . . 139 . . 16 . . 19 25 22 Terrain Rammed . | . . . . . . . . . . . . . . . . . . . . . . . . . . . . Walls Destroyed . | . . . . . . . . . . . . . . . . . . . . . . . . . . . . Machines Disabled . | . . . . . . . . . . . . . . . . . . . . . . . . . . . . Actions | -11 -10 -10 -10 -9 -8 -7 -7 -7 -6 -6 -6 -6 -5 -5 -5 -5 -5 -4 -4 -4 -4 -4 -3 -3 -2 -1 -1 --------- Run | Scr Mat Min Exi Min Mat Fac Was Fac Fac Low Low Zio Pro Fac Upp Upp Zhi Pro Fac Upp Upp War Pro Res Res Acc Com Total 22817 | 36 152 518 228 503 609 686 97 1175 1393 817 325 926 593 2023 891 820 150 622 1047 668 585 1148 564 1445 2439 744 1613 Wait 2519 | . 3 14 . 84 89 58 6 107 56 36 5 1 87 253 56 215 . 191 154 114 103 99 181 204 191 36 176 Move 18402 | 32 139 480 227 404 390 511 90 980 1162 748 311 917 484 1525 737 585 137 427 815 507 479 956 370 1058 2047 653 1231 Hop 21 | . . . . . . . . . . . . . . . . . . . . . . . . . 7 2 12 Pick Up 18 | . 1 1 1 . . . . 1 2 . . . . . . . . . . . . 2 . 1 5 1 3 Fast Attach 186 | 4 4 1 . 2 11 14 1 11 20 3 . 4 1 22 2 1 8 2 7 . 1 16 . 12 35 . 4 Attach 5 | . . . . . . . . . . . . . . . . . . . . . . . . . 3 . 2 Detach 3 | . . . . . . . . . 1 . . . . . . . . . . . . . . . 1 . 1 Swap 23 | . . . . . . 2 . 4 4 . . . 1 1 . . . . . . . . . 1 2 3 5 Drop 181 | . 4 2 . . 10 10 . 14 25 3 . 4 1 19 2 . 5 2 8 . . 15 . 9 38 2 8 Fire 991 | . 1 18 . 12 92 57 . 21 103 27 3 . 17 131 44 11 . . 53 27 2 32 12 114 72 29 113 Melee 40 | . . . . . . . . 36 4 . . . . . . . . . . . . . . . . . . Ram . | . . . . . . . . . . . . . . . . . . . . . . . . . . . . Kick . | . . . . . . . . . . . . . . . . . . . . . . . . . . . . Crush . | . . . . . . . . . . . . . . . . . . . . . . . . . . . . Escape Stasis 21 | . . . . . . . . . 13 . . . . . . . . . . . . . 1 . . . 7 Rewire . | . . . . . . . . . . . . . . . . . . . . . . . . . . . . Trap 2 | . . . . . . . . . . . . . . . 2 . . . . . . . . . . . . Miscellaneous 405 | . . 2 . 1 17 34 . 1 3 . 6 . 2 72 48 8 . . 10 20 . 28 . 46 38 18 51 Route ------- -11/Scrapyard -10/Materials -10/Mines (discovered 3 exits: [*Mat x2] / *Exi) -10/Exiles -9/Mines (discovered 2 exits: *Mat x2) -8/Materials -7/Factory (discovered 3 exits: Sto / *Low x2) -7/Waste -7/Factory (discovered 3 exits: *Fac x2 / *Sto) -6/Factory (discovered 4 exits: *Fac x2 / *Low x2) -6/Lower Caves -6/Lower Caves -6/Zion -5/Proximity Caves -5/Factory (discovered 6 exits: Fac x2 / *Upp x2 / *Ext x2) -5/Upper Caves -5/Upper Caves (discovered 2 exits: *Fac / *Zhi) -5/Zhirov -4/Proximity Caves -4/Factory (discovered 3 exits: *Res / *Upp x2) -4/Upper Caves -4/Upper Caves -4/Warlord -3/Proximity Caves -3/Research -2/Research (discovered 2 exits: *Acc / [*Qua]) -1/Access -1/Command (discovered 2 exits: *Sur x2) To Epsilon Eridani History --------- Turn | Location | Event 1 | -11/Scrapyard | Upgraded with Propulsion slot (x1) 1 | -11/Scrapyard | Upgraded with Utility slot (x2) 24 | -11/Scrapyard | Discovered new exit (range 12) 34 | -11/Scrapyard | Entered Materials 134 | -10/Materials | Discovered new exit (range 7) 154 | -10/Materials | Entered Mines 180 | -10/Mines | A weapon hastily lodged in a ceiling crevice suddenly fell to the ground 272 | -10/Mines | Assembled infested the area 302 | -10/Mines | Build established: Mutant 411 | -10/Mines | Discovered new exit (range 8) 431 | -10/Mines | Discovered new exit (range 5) 432 | -10/Mines | Learned location of Zion (-6) 476 | -10/Mines | Deemed a non-threat by the Exiles lab entrance 476 | -10/Mines | Discovered new exit (range 5) 479 | -10/Mines | Entered Exiles 494 | -10/Exiles | Met 8R-AWN 502 | -10/Exiles | Met EX-HEX 520 | -10/Exiles | Met EX-BIN 527 | -10/Exiles | Aligned with FarCom system 527 | -10/Exiles | Given EX-Vault access code 540 | -10/Exiles | Opened EX-Vault 543 | -10/Exiles | Found Field Lobotomy Kit 554 | -10/Exiles | Warned to stay clear of 0b10 Research branches 571 | -10/Exiles | Met EX-DEC 600 | -10/Exiles | Discovered new exit (range 14) 608 | -10/Exiles | Left Exiles lab with Field Lobotomy Kit 608 | -10/Exiles | Entered Mines 610 | -9/Mines | Reached level 2 610 | -9/Mines | Upgraded with Propulsion slot (x1) 670 | -9/Mines | Discovered new exit (range 3) 905 | -9/Mines | Received a Rocket Launcher from a helpful Derelict 911 | -9/Mines | Build established: Scout 944 | -9/Mines | Discovered new exit (range 5) 947 | -9/Mines | Entered Materials 949 | -8/Materials | Reached level 3 953 | -8/Materials | Upgraded with Utility slot (x1) 1126 | -8/Materials | Reached level 4 1468 | -8/Materials | Discovered new exit (range 15) 1480 | -8/Materials | Entered Factory 1481 | -7/Factory | Identified exit to Storage 1482 | -7/Factory | Reached level 5 1487 | -7/Factory | Upgraded with Weapon slot (x1) 1608 | -7/Factory | Identified exit to Lower Caves 1693 | -7/Factory | Core integrity fell below 50% 1724 | -7/Factory | Core integrity fell below 20% 1724 | -7/Factory | Reached level 6 1795 | -7/Factory | Destroyed 8 combat bots 1966 | -7/Factory | Reached level 7 2006 | -7/Factory | Sucked down chute 2006 | -7/Factory | Entered Waste 2017 | -7/Waste | Spotted C-40 Crusher 2021 | -7/Waste | EMP discharged 2025 | -7/Waste | Spotted C-40 Crusher 2042 | -7/Waste | Spotted C-40 Crusher 2044 | -7/Waste | Spotted C-40 Crusher 2053 | -7/Waste | Discovered new exit (range 16) 2054 | -7/Waste | Spotted C-40 Crusher 2061 | -7/Waste | Entered Factory 2119 | -7/Factory | System corruption reached 10% 2120 | -7/Factory | Upgraded with Utility slot (x1) 2367 | -7/Factory | Reached level 8 2629 | -7/Factory | Discovered exit to Storage (range 9) 2691 | -7/Factory | Discovered new exit (range 5) 2811 | -7/Factory | Discovered new exit (range 20) 2867 | -7/Factory | Entered another Factory area 2868 | -6/Factory | Core integrity fell below 50% 2869 | -6/Factory | Reached level 9 3013 | -6/Factory | Identified exit to Lower Caves 3055 | -6/Factory | Spotted B-75 Beast 3120 | -6/Factory | Reached level 10 3193 | -6/Factory | Garrison activated, responded to threat 3201 | -6/Factory | Found Prototype Processor 3201 | -6/Factory | Identified Exp. Terrain Scan Processor 3377 | -6/Factory | Found Prototype Processor 3377 | -6/Factory | Identified Exp. Signal Interpreter 3509 | -6/Factory | Garrison activated, responded to threat 3557 | -6/Factory | Discovered new exit (range 11) 3562 | -6/Factory | Identified exit to Factory 3618 | -6/Factory | Reached level 11 3624 | -6/Factory | Discovered exit to Factory (range 14) 3679 | -6/Factory | Core integrity fell below 20% 3809 | -6/Factory | Entered Lower Caves 3811 | -6/Lower Caves | Reached level 12 4180 | -6/Lower Caves | Learned Factory stockpile data 4182 | -6/Lower Caves | Central database locked down 4216 | -6/Lower Caves | Discovered new exit (range 6) 4219 | -6/Lower Caves | Identified exit to Lower Caves 4228 | -6/Lower Caves | Learned Factory security intel 4295 | -6/Lower Caves | Entered another Lower Caves area 4363 | -6/Lower Caves | Learned 8 Factory zone layouts 4397 | -6/Lower Caves | Discovered new exit (range 20) 4405 | -6/Lower Caves | Acquired the password to a Derelict Tinkerer's latest research 4414 | -6/Lower Caves | Identified exit to Zion 4475 | -6/Lower Caves | Entered Zion 4477 | -6/Zion | Reached level 13 4483 | -6/Zion | Given the Hacking Drone Bay 4513 | -6/Zion | Discovered new exit (range 10) 4541 | -6/Zion | System corruption cleaned by Quarantine Array 4673 | -6/Zion | Learned Factory stockpile data 4691 | -6/Zion | Learned 8 Factory zone layouts 4788 | -6/Zion | Rebuked by Imprinter 4926 | -6/Zion | Found Prototype Device 4926 | -6/Zion | Identified Hacking Drone Bay 4930 | -6/Zion | Upgraded with Propulsion slot (x1) 4930 | -6/Zion | Upgraded with Utility slot (x1) 4961 | -6/Zion | Identified exit to Proximity Caves 4961 | -6/Zion | Entered Proximity Caves 5045 | -5/Proximity Caves | Reached level 14 5083 | -5/Proximity Caves | Learned Factory security intel 5140 | -5/Proximity Caves | Build established: Derelict-Scout 5329 | -5/Proximity Caves | Discovered exit to Factory (range 9) 5340 | -5/Proximity Caves | Entered Factory 5341 | -5/Factory | Identified exit to Extension 5341 | -5/Factory | Identified exit to Factory 5341 | -5/Factory | Core integrity fell below 50% 5342 | -5/Factory | Reached level 15 5442 | -5/Factory | Repaired Imp. Weapon Cycler 5528 | -5/Factory | Core integrity fell below 20% 5697 | -5/Factory | Reached level 16 5787 | -5/Factory | Fabricated Lrn. Tractor Beam (x2) 5866 | -5/Factory | Build established: Scout 5944 | -5/Factory | Reached level 17 6016 | -5/Factory | Garrison activated, responded to threat 6185 | -5/Factory | Discovered exit to Extension (range 14) 6233 | -5/Factory | Upgraded with Utility slot (x1) 6240 | -5/Factory | First assault squad dispatched 6270 | -5/Factory | Garrison activated, responded to threat 6326 | -5/Factory | Discovered exit to Factory (range 15) 6347 | -5/Factory | Reached level 18 6428 | -5/Factory | Repaired Linear Gravjet? 6476 | -5/Factory | Destroyed 7 combat bots 6598 | -5/Factory | Identified exit to Upper Caves 6616 | -5/Factory | Reached level 19 6679 | -5/Factory | Entered Upper Caves 6680 | -5/Upper Caves | Encountered a Warlord checkpoint 6707 | -5/Upper Caves | Learned Factory stockpile data 6738 | -5/Upper Caves | Ambushed by wild Derelicts 6965 | -5/Upper Caves | Reached level 20 7087 | -5/Upper Caves | Destroyed 7 combat bots 7156 | -5/Upper Caves | Attracted the attention of an 0b10 checkpoint 7200 | -5/Upper Caves | Discovered new exit (range 17) 7230 | -5/Upper Caves | Identified exit to Upper Caves 7250 | -5/Upper Caves | Entered another Upper Caves area 7251 | -5/Upper Caves | Discovered exit to Factory (range 15) 7289 | -5/Upper Caves | Upgraded with Power slot (x1) 7289 | -5/Upper Caves | Upgraded with Propulsion slot (x1) 7289 | -5/Upper Caves | Upgraded with Utility slot (x1) 7402 | -5/Upper Caves | Reached level 21 7576 | -5/Upper Caves | Learned location of Warlord (-4) 7762 | -5/Upper Caves | Discovered new exit (range 13) 7782 | -5/Upper Caves | Identified exit to Zhirov 7782 | -5/Upper Caves | Entered Zhirov 7782 | -5/Zhirov | Discovered new exit (range 3) 7801 | -5/Zhirov | Learned location of Quarantine (-2) 7801 | -5/Zhirov | Learned location of Testing (-3) 7801 | -5/Zhirov | Learned location of Command (-1) 7816 | -5/Zhirov | Found Alien Artifact 7816 | -5/Zhirov | Identified Integrated Dissipator 7816 | -5/Zhirov | Installed Integrated Dissipator, increased core heat dissipation (+20) 7858 | -5/Zhirov | Identified exit to Proximity Caves 7859 | -5/Zhirov | Entered Proximity Caves 7976 | -4/Proximity Caves | Build established: Hacker-Scout 8050 | -4/Proximity Caves | Learned Research security intel 8118 | -4/Proximity Caves | Received a Behemoth hack from an annoying Tinkerer 8225 | -4/Proximity Caves | Entered Factory 8226 | -4/Factory | Identified exit to Upper Caves 8227 | -4/Factory | Reached level 22 8274 | -4/Factory | Reached level 23 8453 | -4/Factory | Discovered new exit (range 16) 8471 | -4/Factory | Fabricated H-77 Assassin? 8569 | -4/Factory | Fabricated Tri-rail Accelerator? 8605 | -4/Factory | Discovered exit to Upper Caves (range 12) 8633 | -4/Factory | Local fabrication network quarantined 8680 | -4/Factory | Reached level 24 8830 | -4/Factory | Entered Upper Caves 8831 | -4/Upper Caves | Upgraded with Utility slot (x1) 8922 | -4/Upper Caves | Encountered a Warlord checkpoint 8931 | -4/Upper Caves | Attracted the attention of an 0b10 checkpoint 9068 | -4/Upper Caves | Destroyed 8 combat bots 9151 | -4/Upper Caves | Learned Research emergency access door positions 9164 | -4/Upper Caves | Discovered new exit (range 10) 9167 | -4/Upper Caves | Identified exit to Upper Caves 9211 | -4/Upper Caves | Entered another Upper Caves area 9213 | -4/Upper Caves | Reached level 25 9280 | -4/Upper Caves | Encountered a Warlord checkpoint 9436 | -4/Upper Caves | Discovered new exit (range 13) 9471 | -4/Upper Caves | Identified exit to Warlord 9511 | -4/Upper Caves | Entered Warlord 9520 | -4/Warlord | Discovered new exit (range 18) 9578 | -4/Warlord | Learned location of Armory (-4) 9578 | -4/Warlord | Learned Quarantine trap positions 9578 | -4/Warlord | Learned 4 Research zone layouts 9578 | -4/Warlord | Learned 4 Testing zone layouts 9578 | -4/Warlord | Learned Factory recycling unit intel 9578 | -4/Warlord | Learned Research scanalyzer intel 9649 | -4/Warlord | Visited the Vortex Lab 9653 | -4/Warlord | Found Prototype Energy Gun 9653 | -4/Warlord | Identified Vortex Shotgun 9655 | -4/Warlord | Found Prototype Launcher 9655 | -4/Warlord | Identified Vortex Catalyst Activator 9671 | -4/Warlord | Warlord's base attacked by MAIN.C 9694 | -4/Warlord | Met Warlord 9712 | -4/Warlord | Found Prototype Reactor 9712 | -4/Warlord | Identified Vortex Chain Reactor 9724 | -4/Warlord | Found Prototype Device 9724 | -4/Warlord | Identified Exp. Focal Shield 9840 | -4/Warlord | Found Prototype Ballistic Cannon 9840 | -4/Warlord | Identified Hvy. Autocannon 9988 | -4/Warlord | Warlord forces counterattacked 10009 | -4/Warlord | Destroyed Executioner 10015 | -4/Warlord | Destroyed Executioner 10023 | -4/Warlord | Destroyed Executioner 10031 | -4/Warlord | Destroyed B-90 Cyclops 10052 | -4/Warlord | Destroyed 9 combat bots 10061 | -4/Warlord | Found Prototype Processor 10061 | -4/Warlord | Identified Exp. Core Analyzer 10078 | -4/Warlord | Identified exit to Proximity Caves 10079 | -4/Warlord | Entered Proximity Caves 10080 | -3/Proximity Caves | Identified exit to Research 10081 | -3/Proximity Caves | Reached level 26 10258 | -3/Proximity Caves | Crushed by falling debris 10294 | -3/Proximity Caves | Crushed by falling debris 10411 | -3/Proximity Caves | Entered Research 10413 | -3/Research | Reached level 27 10415 | -3/Research | Loaded intel: 6 scanalyzer locations 10416 | -3/Research | Upgraded with Propulsion slot (x1) 10536 | -3/Research | Garrison activated, responded to threat 10554 | -3/Research | Found Prototype Device 10554 | -3/Research | Identified Imp. Particle Accelerator 10878 | -3/Research | Reached level 28 10948 | -3/Research | First assault squad dispatched 10993 | -3/Research | System corruption reached 10% 11026 | -3/Research | Garrison activated, responded to threat 11110 | -3/Research | Garrison activated, responded to threat 11142 | -3/Research | Fabricated H-77 Assassin? 11246 | -3/Research | Discovered new exit (range 16) 11254 | -3/Research | Identified exit to Research 11274 | -3/Research | Upgraded with Utility slot (x1) 11322 | -3/Research | Entered another Research area 11322 | -2/Research | Warlord forces began assault on 0b10 11324 | -2/Research | Reached level 29 11432 | -2/Research | Research machine network offline 11450 | -2/Research | Reached level 30 11525 | -2/Research | Met up with Warlord 11579 | -2/Research | Borebot progress halted 11679 | -2/Research | Discovered new exit (range 16) 11691 | -2/Research | Discovered new exit (range 13) 11697 | -2/Research | Identified exit to Access 11702 | -2/Research | Found Prototype Device 11702 | -2/Research | Identified Exp. Force Field 11756 | -2/Research | Destroyed E6-MMV(g) 11785 | -2/Research | Spotted Executioner 11786 | -2/Research | Spotted Executioner 11798 | -2/Research | Reached level 31 11798 | -2/Research | Destroyed Executioner 11857 | -2/Research | Borebot progress halted 11930 | -2/Research | Found Fusion Bomb Launcher 12070 | -2/Research | Warlord destroyed during the assault 12119 | -2/Research | Upgraded with Utility slot (x1) 12240 | -2/Research | Found Prototype Slashing Weapon 12240 | -2/Research | Identified Vibroblade 12374 | -2/Research | Destroyed 8 combat bots 12417 | -2/Research | Reached level 32 12417 | -2/Research | High security lockdown imminent 12461 | -2/Research | Borebot progress halted 12497 | -2/Research | High security lockdown engaged 12498 | -2/Research | Spotted Striker 12499 | -2/Research | Spotted Striker 12499 | -2/Research | Spotted Executioner 12504 | -2/Research | Spotted Striker 12518 | -2/Research | Entered Access 12546 | -1/Access | Identified exit to Command 12546 | -1/Access | Reached level 33 12768 | -1/Access | First assault squad dispatched 12815 | -1/Access | Entered Command 12817 | -1/Command | Reached level 34 12951 | -1/Command | Disengaged cave seal 12951 | -1/Command | Wild derelicts emerged from the dark tunnel 13105 | -1/Command | First assault squad dispatched 13105 | -1/Command | Reached level 35 13168 | -1/Command | Disengaged cave seal 13168 | -1/Command | Wild derelicts emerged from the dark tunnel 13289 | -1/Command | Found Prototype Slashing Weapon 13289 | -1/Command | Identified Centrium Greatsword 13291 | -1/Command | Wild derelicts emerged from the dark tunnel 13339 | -1/Command | Spotted B-99 Colossus 13381 | -1/Command | Identified exit to Surface 13445 | -1/Command | High security lockdown imminent 13525 | -1/Command | High security lockdown engaged 13570 | -1/Command | Spotted B-99 Colossus 13596 | -1/Command | Spotted Alpha 7 13596 | -1/Command | Spotted Striker 13596 | -1/Command | Spotted Executioner 13596 | -1/Command | Spotted Executioner 13596 | -1/Command | Spotted Alpha 7 13596 | -1/Command | Spotted Striker 13596 | -1/Command | Spotted Executioner 13596 | -1/Command | Spotted Executioner 13598 | -1/Command | Spotted B-99 Colossus 13603 | -1/Command | Spotted Executioner 13603 | -1/Command | Spotted B-99 Colossus 13603 | -1/Command | Assimilated B-99 Colossus with FLK Orb 13606 | -1/Command | Assimilated B-99 Colossus with FLK Orb 13608 | -1/Command | Assimilated Executioner with FLK Orb 13610 | -1/Command | Spotted Executioner 13611 | -1/Command | Allies destroyed Executioner 13613 | -1/Command | Core integrity fell below 50% 13615 | -1/Command | Allies destroyed Striker 13625 | -1/Command | Allies destroyed Striker 13636 | -1/Command | Allies destroyed Executioner 13640 | -1/Command | Allies destroyed Alpha 7 13648 | -1/Command | Destroyed Executioner 13651 | -1/Command | Destroyed Alpha 7 13651 | -1/Command | Destroyed Executioner 13653 | -1/Command | Destroyed Executioner 13660 | -1/Command | Core integrity fell below 20% 13660 | *** | Escaped! Last Messages --------------- 13649_ Slug penetrates Reinforced Barrier. 13650_ Penetrated by Slug. 13650_ Slug penetrates Wall. 13651_ Penetrated by Slug. 13651_ Slug penetrates Reinforced Barrier. 13651_ G-73 Enforcer destroyed. 13651_ Alpha 7 destroyed. 13651_ Executioner destroyed. 13651_ B-74 Champion destroyed. 13652_ Penetrated by Slug. 13652_ Slug penetrates Wall. 13652_ Penetrated by Slug. 13652_ Slug penetrates Reinforced Barrier. 13653_ Executioner destroyed. 13653_ G-73 Enforcer destroyed. 13654_ B-74 Champion destroyed. 13656_ Acquired 62 matter. 13657_ Dropped Helical Railgun. 13658_ Acquired Linear Accelerator. 13659_ Penetrated by Slug. Map ----- +----------------------------------------------------+ | ???# # "###?#########????#??# | | ????# # "####????#???#??????## | | ??? # # "##?##?#####???????### | | ?? ?# # |! ####?####?#?????????## | | ????# # |! %= #########?#????????### | | ?? ?######### ! # ##?#####??##?#????## | | ???????####?#######" ! !% # ###??#?#?????????#### | | ?????##? ? ###? [ [[= ##?#######?????????## | | ????? # ##### % ######?######????###? | | ?????? ??? ##### ! #####?##??#??#???#### | | ???????# #### [ = #?########?#???#??#? | | ???#???# "" #### =% ########?#??????##?# | | ????#? #?"?? #### = #######?##?????????? | | ????#? #"?"" ## # ##?########?????##?# | | ???????# ?" #?## % ############????###? | | ???????# #### [= * ###?###?###?????#### | | ???????# #### [ = % ##?###??#?##???#?### | | ????? ?? "" #### ! [ ! ! ############????###? | | ?????? #"??"? ####!*!%% !! ####?#?###???????### | | ?????? #?""" ? ### ![!]!]!% #######?##???????## | | ???????# "" ##; !==*! #########??#??????? | | ?????? # ### ^ ! ^ ######?###??????### | | ?????? #??? ##; ^[/ ! ##?####?###??????## | | ???????? ?? ? ?##; ######?##??##???#?? | | ???????? ?? ??### ^ "" ######?##?##?????#? | | ????????##?#?##?#?# "@ ##########?????#### | | ?????? ? ?###### ^ ^ #?#??##???#???????# | | ????????##?# ####?# #?####?#????????#?? | | ???????#?###+###?#; ^^ ;#?####??##???????? | | ???????? ? #### ####????#?????????? | | ????????? ? #### #???#####?#???????# | | ?????????? ? #####;##;;;;;;#######?####????????? | | ????????? ??? ##??###########?##?####???????????? | | ?????????????? ##### #??#? #########?#??#????????? | | ??????????? ????##?######?#####?#??###?#?????????? | | ?????????????? #?###?#?###?##?####?###???????????? | | ????????????? ?#?#?#????#?###??#?##?##???????????? | | ???????????????#?##?##?###?#??????##?????????????? | | ?????????????? ???#?####?#?###???????????????????? | | ???????????????????#???#??#?#????#???????????????? | | ??????????????????####?#?##??????????????????????? | | ???????????????????????#?????????????????????????? | | ?????????????????????????????????????????????????? | | ?????????????????????????????????????????????????? | | ?????????????????????????????????????????????????? | | ?????????????????????????????????????????????????? | | ?????????????????????????????????????????????????? | | ?????????????????????????????????????????????????? | | | | | +----------------------------------------------------+ Best States ------------- Heat Dissipation 87 Energy Generation 85 Energy Capacity 700 Matter Stores 448 Matter Capacity 550 Sight Range 22 Robot Scan Range 22 Terrain Scan Range 24 Terrain Scan Density 1110 Power Amplification 40 Additional Mass Support 16 Resistance: KI 20 Resistance: TH 20 Utility Shielding 90 Reclamation Efficiency 25 Weapon Cycling 25 Melee Speed Boost 20 Evasion (%) 64 Targeting Accuracy 5 Target Analysis 8 Core Analysis 15 Matter Filtering 30 Kinecelleration 40 Salvage Targeting 3 Offensive Hacking 30 Defensive Hacking 10 Item Schematics ----------------- Imp. Remote Shield | -6/Factory | Hacked Drone Bay | -6/Factory | Hacked Kinecellerator | -6/Factory | Hacked Force Booster | -6/Factory | Hacked Weapon Cycler | -6/Factory | Hacked Lrn. Tractor Beam | -6/Lower Caves | Hacked Imp. Cloaking Device | -5/Factory | Hacked Assault Drone Bay | -5/Zhirov | Free Exp. Heat Sink | -5/Zhirov | Free Exp. Optical Array | -5/Zhirov | Free Tri-rail Accelerator | -4/Factory | Hacked Energy Filter | -4/Factory | Scanalyzed Adv. Reaction Control System | -3/Research | Hacked Impulse Thruster Array | -3/Research | Hacked Energy Mantle | -3/Research | Hacked Inertial Stasis Machine | -2/Research | Scanalyzed Robot Schematics ------------------ M-28 Smith | -7/Factory | Downloaded Fabricated ------------ Lrn. Tractor Beam | x2 | -5/Factory H-77 Assassin | x2 | -4/Factory | Preloaded Tri-rail Accelerator | x1 | -4/Factory H-77 Assassin | x2 | -3/Research | Preloaded Alien Tech Used ----------------- Integrated Dissipator Achievements -------------- None Challenges ------------ None RPGLIKE | -11 -10 -10 -10 -9 -8 -7 -7 -7 -6 -6 -6 -6 -5 -5 -5 -5 -5 -4 -4 -4 -4 -4 -3 -3 -2 -1 -1 --------- Run | Scr Mat Min Exi Min Mat Fac Was Fac Fac Low Low Zio Pro Fac Upp Upp Zhi Pro Fac Upp Upp War Pro Res Res Acc Com Levels Raised 34 | . . . . 1 2 3 . 1 3 1 . 1 1 5 1 1 . . 3 . 1 . 1 2 4 1 2 XP Earned 55272 | 3000 35 850 350 850 3320 3775 200 1713 5193 764 600 650 1700 7547 1874 789 244 1000 3424 896 244 1145 1104 2955 5316 2661 3073 XP Spent 51000 | 2985 . . . 1485 2250 1250 . 5460 900 1520 . 4860 1315 2000 . 8445 . . 1995 2805 . . 300 5790 4615 3025 . Upgrades 100 | 12 . . . 4 7 5 . 12 1 10 . 7 5 1 . 14 . . 3 2 . . 1 5 6 5 . Power Slot 1 | . . . . . . . . . . . . . . . . 1 . . . . . . . . . . . Propulsion Slot 5 | 1 . . . 1 . . . . . . . 1 . . . 1 . . . . . . . 1 . . . Utility Slot 10 | 2 . . . . 1 . . 1 . . . 1 . 1 . 1 . . . 1 . . . 1 1 . . Weapon Slot 1 | . . . . . . 1 . . . . . . . . . . . . . . . . . . . . . Core Integrity 27 | 1 . . . 1 2 2 . 2 . 2 . 2 3 . . 2 . . 1 1 . . . 2 3 3 . Heat Dissipation 7 | 3 . . . . . 1 . 2 . . . . . . . 1 . . . . . . . . . . . Energy Generation 2 | . . . . . . . . . . . . . 1 . . . . . . . . . . . 1 . . Matter Storage 1 | . . . . . . . . . . . . . . . . 1 . . . . . . . . . . . Mass Support 1 | . . . . . 1 . . . . . . . . . . . . . . . . . . . . . . Inventory Capacity 3 | 1 . . . . . . . 1 . . . . . . . . . . . . . . . 1 . . . Sensor Range 11 | 1 . . . . . . . . . 8 . . . . . 1 . . . . . . 1 . . . . Terrain Scan Density 3 | 1 . . . . . . . . . . . . . . . 1 . . . . . . . . 1 . . Ranged Accuracy 7 | 1 . . . 1 1 . . 2 1 . . . . . . . . . 1 . . . . . . . . Melee Accuracy 1 | . . . . . . . . 1 . . . . . . . . . . . . . . . . . . . Hack Attack % 6 | . . . . . 1 . . 1 . . . . . . . 1 . . 1 . . . . . . 2 . Hack Defense % 2 | . . . . . . . . 1 . . . . . . . 1 . . . . . . . . . . . KI Resistance % 4 | . . . . 1 . . . . . . . 1 1 . . 1 . . . . . . . . . . . TH Resistance % 4 | . . . . . 1 . . . . . . 1 . . . 2 . . . . . . . . . . . KI Damage % 4 | 1 . . . . . 1 . 1 . . . 1 . . . . . . . . . . . . . . . Protomatter Created 3468 | . . 11 . 7 120 264 . 30 31 . 41 . 13 609 288 66 . . 144 227 . 210 . 459 304 76 568 Integrity Restored 8601 | . . 33 . 21 353 753 . 15 63 . 123 . 39 1602 987 132 . . 175 414 . 510 . 1012 770 405 1194 Core 7621 | . . 33 . 21 305 753 . 15 63 . 123 . 39 1602 729 87 . . 158 332 . 281 . 890 591 405 1194 Parts 980 | . . . . . 48 . . . . . . . . . 258 45 . . 17 82 . 229 . 122 179 . . Protomatter Decayed 4550 | . . 2 . . 2 13 . . . 92 . . . 75 9 19 . . 27 65 . 144 45 174 2659 140 1084 Game ------ Seed ControlMeleeVibroblade Manual? 0 Play Time 03:51:51 Cumulative 321.9 hours Start 2021.06.04 @ 14:44:01 End 2021.06.04 @ 18:37:04 Sessions 1 Manual Loads 0 Difficulty Rogue Special Mode Winter2019/RPGLIKE Game No. 125 Rogue 125 Adventurer 0 Explorer 0 Win Type 0 Total 14 Types 12/0/1/1/0/0/0/0/0 Lore% 77 Gallery% 86 Achievement% 69 Wizard Run 0 Options --------- ASCII 0 Keyboard 0 Movement Mouse Keybinds 0 Fullscreen 2 Font 12/Smallcaps Map View 83x54 Tactical HUD 1 Map Filters NONE Filters NONE Steam X RUN: 9d3aadf0-8ac0-4155-a2d6-d0ce6d98bb1d